Cogmind - Beta 16 @@@ ROGUE MODE // 2025.10.28 @ 18:17:03 Player: ChromeKnight Result: Destroyed by G-34 Mercenary with Small Laser Performance ------------- Evolutions (0) 0 Regions Visited (1) 200 Robots Destroyed (5) 25 Value Destroyed (146) 146 Prototype IDs (0) 0 Alien Tech Used (0) 0 Bonus (0) 0 TOTAL SCORE: 371 Bonus ------- None Cogmind --------- Core Integrity 0/250 Matter 300/300 Energy 100/100 System Corruption 0% Temperature Cool (6) Movement Core (350) Ox6 Location -10/Materials Parts ------- > --- POWER (1) -------- (None) > --- PROPULSION (2) --- (None) > --- UTILITY (2) ------ Large Storage Unit > --- WEAPON (2) ------- (None) > --- INVENTORY (15) --- Medium Storage Unit Peak State ------------ > --- POWER ------------ (None) > --- PROPULSION ------- Light Treads Light Treads > --- UTILITY ---------- Small Storage Unit Large Storage Unit > --- WEAPON ----------- (None) > --- INVENTORY -------- (None) [Rating: 4] Favorites ----------- Power None Propulsion Light Treads Treads Light Treads Utility Large Storage Unit Storage Large Storage Unit Weapon None Build | -11 -10 ------- Run | Yrd Mat Slots Evolved . | . . Power . | . . Propulsion . | . . Utility . | . . Weapon . | . . Parts Attached 4 | 3 1 Power . | . . Engine . | . . Core . | . . Reactor . | . . Propulsion 2 | 2 . Treads 2 | 2 . Leg . | . . Wheel . | . . Hover . | . . Flight . | . . Utility 2 | 1 1 Device . | . . Storage 2 | 1 1 Processor . | . . Hackware . | . . Protection . | . . Artifact . | . . Weapon . | . . Energy Gun . | . . Energy Cannon . | . . Ballistic Gun . | . . Ballistic Cannon . | . . Launcher . | . . Special Weapon . | . . Impact Weapon . | . . Slashing Weapon . | . . Piercing Weapon . | . . Special Melee Weapon . | . . Unidentified Prototypes . | . . Parts Lost 2 | . 2 Power . | . . Propulsion 2 | . 2 Utility . | . . Weapon . | . . Highest Loss Streak 2 | . 2 To Critical Strikes . | . . Average Backups . | . . Power . | . . Propulsion . | . . Utility . | . . Weapon . | . . Tool/Special . | . . Unused Backups 2 | . 2 Power . | . . Propulsion . | . . Utility 2 | . 2 Weapon . | . . Tool/Special . | . . Average Slot Usage (%) 41 | . 41 Treads 27 | . 27 Storage 14 | . 14 Peak Build Rating 4 | 3 4 Average Rating 2 | 2 2 On Entrance 1 | . 3 Avg Prop Armor Cover (%) . | . . Naked Turns . | . . Heaviest Build 25 | 5 25 Greatest Support 40 | 40 40 Greatest Overweight (x) 6 | . 6 Average Overweight (x) . | . . Largest Inventory Capacity 15 | 8 15 Average Capacity 13 | 7 14 Most Carried 1 | . 1 Average Carried . | . . Final Capacity 15 | 8 15 Final Carried 1 | . 1 Class Distribution -------------------- 100% | Mutant Dominant Class ---------------- Mutant | -10/Materials Resources | -11 -10 ----------- Run | Yrd Mat Matter Collected 211 | 196 15 Remotely . | . . Salvage Created 43 | . 43 Parts 3 | . 3 Haulers Intercepted . | . . Recyclers Shooed . | . . Parts Field Recycled . | . . Retrieved Matter . | . . Parts Self-Destructed . | . . Prevented . | . . Parts Restored . | . . Kills | -11 -10 ------- Run | Yrd Mat Combat Hostiles Destroyed 5 | . 5 Melee 5 | . 5 Classes Destroyed 2 | . 2 Swarmer 1 | . 1 Grunt 4 | . 4 Best Kill Streak 4 | . 4 Combat Bots Only 4 | . 4 Max Kills in Single Turn 1 | . 1 Gunslinging . | . . Exploded . | . . Melee 1 | . 1 Uniques/NPCs Destroyed . | . . Combat | -11 -10 -------- Run | Yrd Mat Hostile Shots Fired 93 | . 93 Missed 22 | . 22 Hits 71 | . 71 Projectile 71 | . 71 Damage Taken 652 | . 652 Core 253 | . 253 Absorbed by Shields . | . . Core Remaining (%) 100 | 100 . Volleys Fired . | . . Largest . | . . Hottest . | . . Shots Fired . | . . Gun . | . . Cannon . | . . Launcher . | . . Special . | . . Kinetic . | . . Thermal . | . . Explosive . | . . Electromagnetic . | . . Robot Hit Streak . | . . Robot Miss Streak . | . . Penetration Max . | . . Secondary Targets . | . . Shots Hit Robots . | . . Core Hits 3 | . 3 Critical Kills . | . . Critical Parts Destroyed . | . . Critical Strikes . | . . Melee Attacks . | . . Impact . | . . Slashing . | . . Piercing . | . . Sneak Attacks . | . . Combat Hostiles . | . . Follow-up Attacks . | . . Damage Inflicted 65 | . 65 Guns . | . . Cannons . | . . Explosions . | . . Melee . | . . Ramming 65 | . 65 Kinetic . | . . Thermal . | . . Explosive . | . . Electromagnetic . | . . Impact . | . . Slashing . | . . Piercing . | . . Highest Corruption . | . . Average Corruption . | . . Corruption Purged . | . . Corruption Blocked . | . . Overload Shots . | . . Overflow Damage . | . . Projectiles . | . . Explosions . | . . Melee . | . . Knockbacks 1 | . 1 Impact 1 | . 1 Kinetic . | . . Secondary . | . . Self-Inflicted Damage . | . . Shots . | . . Rammed 16 | . 16 Targets Rammed 21 | . 21 Kicked . | . . Crushed 5 | . 5 Highest Temperature . | . . Average Temperature . | . . Received Heat Transfer 168 | . 168 Siege Activations . | . . Martial Activations . | . . Shielding Activations . | . . Robots Disrupted . | . . Combat Hostiles . | . . Robots Corrupted . | . . Combat Hostiles . | . . Parts Fried . | . . Impact Corruptions . | . . Robots Melted . | . . Combat Hostiles . | . . Parts Melted . | . . Heat Transferred . | . . Parts Sabotaged . | . . Parts Stolen . | . . Parts Stripped . | . . Power Chain Reactions . | . . Alert | -11 -10 ------- Run | Yrd Mat Maximum Alert Level . | . . Low Security (%) 100 | 100 100 Level 1 . | . . Level 2 . | . . Level 3 . | . . Level 4 . | . . Level 5 . | . . High Security . | . . Max Security . | . . Peak Influence 80 | . 80 Initial . | . . Average 12 | . 15 Influence Increases 146 | . 146 Destroy 0b10 Robot/C 100 | . 100 Destroy Leader 20 | . 20 Successful Hack 11 | . 11 Lose Combat Pursuer 15 | . 15 Influence Decreases 131 | . 131 Time Decay 117 | . 117 Lost Part 14 | . 14 Squads Dispatched 3 | . 3 Investigation 2 | . 2 Extermination . | . . Reinforcement 1 | . 1 Assault . | . . Garrison . | . . Intercept . | . . Searches Triggered . | . . Construction Impeded . | . . Haulers Reinforced . | . . Active Scanning Responses . | . . Cargo Convoy Interrupts . | . . Stealth | -11 -10 --------- Run | Yrd Mat Distress Signals 1 | . 1 Communications Jammed . | . . Distress Signals . | . . Times Spotted 15 | . 15 Peak Tracking Total 8 | . 8 Tactical Retreats 1 | . 1 Traps | -11 -10 ------- Run | Yrd Mat Traps Triggered 2 | . 2 Indirectly . | . . Trap Hack Attempts . | . . Triggered . | . . Disarmed . | . . Reprogrammed . | . . Reused . | . . Traps Extracted . | . . Installed . | . . Triggered . | . . Machines | -11 -10 ---------- Run | Yrd Mat Machines Disabled . | . . Max in Single Turn . | . . Machines Repaired . | . . Machines Dismantled . | . . Machines Sabotaged . | . . Overloaded Fab Kills . | . . Hacking | -11 -10 --------- Run | Yrd Mat Machines Accessed 2 | . 2 Terminals 2 | . 2 Fabricators . | . . Repair Stations . | . . Recycling Units . | . . Scanalyzers . | . . Garrison Access . | . . Total Hacks 6 | . 6 Successful 2 | . 2 Failed 4 | . 4 Catastrophic . | . . Database Lockouts . | . . Manual 3 | . 3 Terminals 6 | . 6 Fabricators . | . . Repair Stations . | . . Recycling Units . | . . Scanalyzers . | . . Garrison Access . | . . Terminal Hacks 1 | . 1 Zone Layout 1 | . 1 Fabricator Hacks . | . . Repair Station Hacks . | . . Recycling Unit Hacks . | . . Scanalyzer . | . . Garrison Access Hacks . | . . Unauthorized Hacks 1 | . 1 Terminals 1 | . 1 Operators 1 | . 1 Fabricators . | . . Repair Stations . | . . Recycling Units . | . . Scanalyzers . | . . Garrison Access . | . . Data Cores Recovered . | . . Used . | . . Hacking Detections 1 | . 1 Full Trace Events . | . . Feedback Events . | . . Feedback Blocked . | . . Robot Schematics Acquired . | . . Robots Built . | . . Authchips . | . . Time . | . . Total Robot Build Rating . | . . Part Schematics Acquired . | . . Parts Built . | . . Authchips . | . . Time . | . . Total Part Build Rating . | . . Part Studies Acquired . | . . Parts Repaired . | . . Time . | . . Parts Recycled . | . . Recycled Matter . | . . Retrieved Matter . | . . Retrieved Components . | . . Parts Scanalyzed . | . . Part Schematics Acquired . | . . Parts Damaged . | . . Bothacking | -11 -10 ------------ Run | Yrd Mat Used RIF Installer . | . . Robots Hacked . | . . Non-combat . | . . Combat . | . . Robot Hacks Applied . | . . Relay Couplers Released . | . . Fabnet Peak Effective % . | . . Robots Rewired . | . . Allies Hacked . | . . Hacks Repelled . | . . Allies | -11 -10 -------- Run | Yrd Mat Total Allies . | . . Largest Group . | . . Highest-Rated Group . | . . Highest-Rated Ally . | . . Total Orders . | . . Ally Attacks . | . . Total Damage . | . . Kills . | . . Allies Corrupted . | . . Allies Melted . | . . Intel | -11 -10 ------- Run | Yrd Mat Active Infowar (turns) . | . . Robot Analysis Total . | . . Derelict Logs Recovered . | . . Drone Launches . | . . Drone Recoveries . | . . Exploration | -11 -10 ------------- Run | Yrd Mat Turns Passed 668 | 114 554 Spaces Moved 378 | 65 313 Core 8 | 4 4 Treads 370 | 61 309 Legs . | . . Wheels . | . . Hover . | . . Flight . | . . Fastest Speed 50 | 50 160 Average Speed 160 | 153 162 Slowest Speed 350 | 160 350 Overloaded Moves . | . . Propulsion Burnouts . | . . Robots Hopped . | . . Potential Cave-ins . | . . Cave-ins Triggered . | . . Exploration Rate (%) 34 | 4 64 Regions Visited 1 Branch Regions . Pre-discovered Areas . | . . Known Exits Taken . | . . Unknown Exits Taken 1 | 1 . Scrap Searched . | . . Spaces Dug . | . . Terrain Destroyed . | . . Melee . | . . Projectile . | . . AOE . | . . Terrain Rammed . | . . Walls Destroyed . | . . Machines Disabled . | . . Actions | -11 -10 --------- Run | Yrd Mat Total 426 | 78 348 Wait 20 | 11 9 Move 377 | 64 313 Hop . | . . Pick Up 2 | . 2 Fast Attach 4 | 3 1 Attach . | . . Detach . | . . Swap . | . . Drop 2 | . 2 Fire . | . . Melee . | . . Ram . | . . Kick . | . . Crush 21 | . 21 Escape Stasis . | . . Rewire . | . . Trap . | . . Miscellaneous . | . . Route ------- -11/Scrapyard -10/Materials (discovered 1 exit: [*Mat]) History --------- Turn | Location | Event 7 | -11/Scrapyard | Discovered new exit (range 15) 115 | -11/Scrapyard | Entered Materials 317 | -10/Materials | Build established: Mutant 487 | -10/Materials | Discovered new exit (range 15) 615 | -10/Materials | Derelicts attacked the area 656 | -10/Materials | Core integrity fell below 50% 667 | -10/Materials | Core integrity fell below 20% 669 | -10/Materials | Destroyed by G-34 Mercenary with Small Laser Last Messages --------------- 00609_ Triggered Alarm Trap. 00609_ An alarm sounds. 00609_ ALERT: Alarm triggered, dispatching investigation squad. 00615_ ALERT: Derelict incursion detected, rerouting patrols to target area. 00615_ Slammed into S-10 Pest. 00625_ Crushed S-10 Pest. 00625_ S-10 Pest destroyed. 00627_ K-01 Serf collects debris. 00635_ Lgt. Treads destroyed. 00637_ K-01 Serf collects debris. 00639_ Slammed into A-02 Transporter. 00640_ R-06 Scavenger collects Lgt. Ion Engine. 00640_ K-01 Serf collects debris. 00650_ ALERT: Hostiles spotted, dispatching reinforcements to Terminal M002. 00656_ Lgt. Treads destroyed. 00667_ W-16 Scout sends out distress signal. Map ----- +----------------------------------------------------+ | ??# +????????????????? #### ???????? | | ??# #????????????????? ????????? | | ??+ #????????????????? ????????? | | ??# #????????????????? ?????????? | | ??# #????????????????? #?????????? | | ??# #????????????????? #?????????? | | ??# #????????????????# #?????????? | | ### #????????????????# #?????????? | | #??#+#??????#+#?## ##????????? | | #??# ######## ### #????????? | | #??# #????????? | | #### T +????????? | | % % #????????? | | ########/######## #????????? | | " #?????? ??????## r ##????????? | | "" #?????? ???????#sgg#?????????? | | "" ??? ??????# g##+#??????? | | "" ##?? ??????# #??????? | | " #?? ?????# #??????? | | #?? ?????# #??????? | | #?# ????# ###????? | | " #?# ????# #????? | | "" #?# #???# #????? | | "" #?##########???# #????? | | "" #??????????????# ### ##????? | | " #??????????????# @ #?? #?????? | | #??????????? #???#?????? | | #?????????# #?????????? | | " #?????????# """ #?????????? | | "" #????????#T """ #?????????? | | "" #????????## """ #?????????? | | "" #?????????# #?????????? | | " #?????????#* #?????????? | | #?????????# ?? +?????????? | | #?????????#????? #?????????? | | +## #?????????????? #?????????? | | # #??????????????? *w ?????????? | | # #??????????????? *! ?????????? | | # #??????????????? ?????????? | | # #???????o??????? #?????????? | | ### #??????????????? ??????????? | | #????????????????????????????? | | #????????????????????????????? | | #????????????????????????????? | | #????????????????????????????? | | ##???????????????????????????? | | T#???????????????????????????? | | ##???????????????????????????? | | #????????????????????????????? | | #????????????????????????????? | +----------------------------------------------------+ Best States ------------- Heat Dissipation 25 Energy Generation 5 Energy Capacity 100 Matter Stores 300 Matter Capacity 300 Sight Range 16 Terrain Scan Density 10 Evasion (%) 40 Recoil Reduction 2 Item Schematics ----------------- None Robot Schematics ------------------ None Fabricated ------------ Nothing Repaired ---------- Nothing Studied --------- None Alien Tech Used ----------------- None Achievements -------------- None Challenges ------------ None Game ------ Seed ThrusterVariableTearclaws Manual? 0 Play Time 00:05:06 Cumulative 487.5 hours Start 2025.10.28 @ 16:11:01 End 2025.10.28 @ 18:17:03 Sessions 1 Manual Loads 0 Difficulty Rogue Special Mode None Game No. 819 Rogue 664 Adventurer 148 Explorer 7 Win Type - Total 24 Types 19/1/3/1/0/0/0/0/0/0 Lore% 71 Gallery% 77 Achievement% 58 Wizard Run 0 Options --------- Layout 1 ASCII 0 Keyboard 0 Movement Numpad Keybinds 0 Fullscreen 2 Font 24/Smallcaps Map View 50x35 Zoom Use 0% Tactical HUD 1 Map Filters NONE Filters NONE Steam 1 RUN: d0d3527d-fd96-45f4-bfbe-cb52062172c7